fUST/lending_fUST_20240929
["ID","MTS","AMOUNT","RATE_DAILY","PERIOD"]
[339428581,1727610643833,-500.0,0.00019173,2]
[339428582,1727610643845,-500.0,0.00019173,2]
[339428583,1727610643854,-500.0,0.00019173,2]
[339428584,1727610643863,-247.26860481,0.00019177,2]
[339428585,1727610643873,-7192.21970781,0.00019177,2]
[339428586,1727610643884,-500.0,0.00019178,2]
[339428587,1727610643895,-500.0,0.00019178,2]
[339428588,1727610643906,-500.0,0.00019178,2]
[339428589,1727610643915,-500.0,0.00019178,2]
[339428590,1727610643926,-500.0,0.00019178,2]
[339428591,1727610643935,-500.0,0.00019178,2]
[339428592,1727610643946,-500.0,0.00019178,2]
[339428593,1727610643955,-526.6066506,0.00019178,2]
[339428594,1727610643964,-566.98379914,0.00019178,2]
[339428595,1727610643974,-500.0,0.00019178,2]
[339428596,1727610643983,-500.0,0.00019178,2]
[339428597,1727610643992,-500.0,0.00019178,2]
[339428598,1727610644001,-500.0,0.00019178,2]
[339428599,1727610644010,-500.0,0.00019178,2]
[339428600,1727610644020,-500.0,0.00019178,2]
[339428601,1727610644029,-500.0,0.00019178,2]
[339428602,1727610644039,-500.0,0.00019178,2]
[339428603,1727610644049,-265.19028371,0.00019178,2]
[339428604,1727610644058,-500.0,0.00019178,2]
[339428605,1727610644067,-500.0,0.00019178,2]
[339428606,1727610644077,-500.0,0.00019178,2]
[339428607,1727610644087,-500.0,0.00019178,2]
[339428608,1727610644096,-500.0,0.00019178,2]
[339428609,1727610644107,-500.0,0.00019178,2]
[339428610,1727610644117,-484.89781957,0.00019178,2]
[339428611,1727610644126,-500.0,0.00019178,2]
[339428612,1727610644136,-1209.84,0.00019178,2]
[339428613,1727610644145,-500.0,0.00019178,2]
[339428614,1727610644154,-500.0,0.00019178,2]
[339428615,1727610644164,-500.0,0.00019178,2]
[339428616,1727610644173,-500.0,0.00019178,2]
[339428617,1727610644183,-500.0,0.00019178,2]
[339428618,1727610644192,-500.0,0.00019178,2]
[339428619,1727610644202,-535.94423632,0.00019178,2]
[339428620,1727610644211,-500.0,0.00019178,2]
[339428621,1727610644220,-162.45707292,0.00019178,2]
[339428622,1727610644230,-500.0,0.00019178,2]
[339428623,1727610644240,-500.0,0.00019178,2]
[339428624,1727610644250,-500.0,0.00019178,2]
[339428625,1727610644260,-600.82,0.00019178,2]
[339428626,1727610644269,-257.8448811,0.00019178,2]
[339428627,1727610644279,-500.0,0.00019178,2]
[339428628,1727610644288,-500.0,0.00019178,2]
[339428629,1727610644298,-500.0,0.00019178,2]
[339428630,1727610644307,-2852.88,0.00019178,2]
[339428631,1727610644316,-500.0,0.00019178,2]
[339428632,1727610644325,-500.0,0.00019178,2]
[339428633,1727610644335,-500.0,0.00019178,2]
[339428634,1727610644346,-502.65638944,0.00019178,2]
[339428635,1727610644356,-500.0,0.00019178,2]
[339428636,1727610644365,-500.0,0.00019178,2]
[339428637,1727610644374,-500.0,0.00019178,2]
[339428638,1727610644384,-367.72668291,0.00019178,2]
[339428639,1727610644393,-502.28451012,0.00019178,2]
[339428640,1727610644403,-650.88,0.00019178,2]
[339428641,1727610644413,-500.0,0.00019178,2]
[339428642,1727610644422,-500.0,0.00019178,2]
[339428643,1727610644432,-500.0,0.00019178,2]
[339428644,1727610644441,-645.83,0.00019178,2]
[339428645,1727610644451,-500.0,0.00019178,2]
[339428646,1727610644460,-500.0,0.00019178,2]
[339428647,1727610644470,-500.0,0.00019178,2]
[339428648,1727610644479,-500.0,0.00019178,2]
[339428649,1727610644490,-500.0,0.00019178,2]
[339428650,1727610644500,-500.0,0.00019178,2]
[339428651,1727610644509,-500.0,0.00019178,2]
[339428652,1727610644519,-500.0,0.00019178,2]
[339428653,1727610644528,-500.0,0.00019178,2]
[339428654,1727610644537,-500.0,0.00019178,2]
[339428655,1727610644546,-500.0,0.00019178,2]
[339428656,1727610644555,-500.0,0.00019178,2]
[339428657,1727610644565,-500.0,0.00019178,2]
[339428658,1727610644574,-500.0,0.00019178,2]
[339428659,1727610644584,-500.0,0.00019178,2]
[339428660,1727610644599,-500.0,0.00019178,2]
[339428661,1727610644608,-500.0,0.00019178,2]
[339428662,1727610644618,-500.0,0.00019178,2]
[339428663,1727610644627,-500.0,0.00019178,2]
[339428664,1727610644637,-548.54,0.00019178,2]
[339428665,1727610644646,-500.0,0.00019178,2]
[339428666,1727610644656,-500.0,0.00019178,2]
[339428667,1727610644666,-500.0,0.00019178,2]
[339428668,1727610644676,-500.0,0.00019178,2]
[339428669,1727610644685,-500.0,0.00019178,2]
[339428670,1727610644694,-500.0,0.00019178,2]
[339428671,1727610644703,-500.0,0.00019178,2]
[339428672,1727610644712,-500.0,0.00019178,2]
[339428673,1727610644724,-500.0,0.00019178,2]
[339428674,1727610644733,-500.0,0.00019178,2]
[339428675,1727610644743,-500.0,0.00019178,2]
[339428676,1727610644752,-500.0,0.00019178,2]
[339428677,1727610644762,-500.0,0.00019178,2]
[339428678,1727610644771,-500.0,0.00019178,2]
[339428679,1727610644780,-524.7962253,0.00019178,2]
[339428680,1727610644790,-500.0,0.00019178,2]
[339428681,1727610644801,-810.17,0.00019178,2]
[339428682,1727610644810,-344.76938792,0.00019178,2]
[339428683,1727610644819,-538.36,0.00019178,2]
[339428684,1727610644829,-500.0,0.00019178,2]
[339428685,1727610644839,-500.0,0.00019178,2]
[339428686,1727610644850,-500.0,0.00019178,2]
[339428687,1727610644860,-500.0,0.00019178,2]
[339428688,1727610644869,-2083.33,0.00019178,2]
[339428689,1727610644879,-500.0,0.00019178,2]
[339428690,1727610644888,-500.0,0.00019178,2]
[339428691,1727610644897,-500.0,0.00019178,2]
[339428692,1727610644907,-610.31,0.00019178,2]
[339428693,1727610644916,-500.0,0.00019178,2]
[339428694,1727610644926,-500.0,0.00019178,2]
[339428695,1727610644936,-466.68654021,0.00019178,2]
[339428696,1727610644945,-250.0,0.00019178,2]
[339428697,1727610644955,-500.0,0.00019178,2]
[339428698,1727610644964,-500.0,0.00019178,2]
[339428699,1727610644974,-500.0,0.00019178,2]
[339428700,1727610644983,-500.0,0.00019178,2]
[339428701,1727610644993,-500.0,0.00019178,2]
[339428702,1727610645002,-500.0,0.00019178,2]
[339428703,1727610645012,-500.0,0.00019178,2]
[339428704,1727610645021,-2020.16,0.00019178,2]
[339428705,1727610645031,-502.01258791,0.00019178,2]
[339428706,1727610645040,-500.0,0.00019178,2]
[339428707,1727610645049,-500.0,0.00019178,2]
[339428708,1727610645067,-500.0,0.00019178,2]
[339428709,1727610645076,-500.0,0.00019178,2]
[339428710,1727610645086,-500.0,0.00019178,2]
[339428711,1727610645096,-500.0,0.00019178,2]
[339428712,1727610645105,-500.0,0.00019178,2]
[339428713,1727610645115,-500.0,0.00019178,2]
[339428714,1727610645124,-500.0,0.00019178,2]
[339428715,1727610645133,-500.0,0.00019178,2]
[339428716,1727610645143,-500.0,0.00019178,2]
[339428717,1727610645152,-571.87776864,0.00019178,2]
[339428718,1727610645161,-500.0,0.00019178,2]
[339428719,1727610645170,-500.0,0.00019178,2]
[339428720,1727610645179,-1813.61,0.00019178,2]
[339428721,1727610645189,-500.0,0.00019178,2]
[339428722,1727610645199,-500.0,0.00019178,2]
[339428723,1727610645208,-500.0,0.00019178,2]
[339428724,1727610645218,-500.0,0.00019178,2]
[339428725,1727610645227,-1506.81,0.00019178,2]
[339428726,1727610645237,-500.0,0.00019178,2]
[339428727,1727610645290,-500.0,0.00019178,2]
[339428728,1727610645300,-500.0,0.00019178,2]
[339428729,1727610645310,-500.0,0.00019178,2]
[339428730,1727610645320,-522.9,0.00019178,2]
[339428731,1727610645331,-500.0,0.00019178,2]
[339428732,1727610645340,-500.0,0.00019178,2]
[339428733,1727610645351,-500.0,0.00019178,2]
[339428734,1727610645360,-500.0,0.00019178,2]
[339428735,1727610645370,-500.0,0.00019178,2]
[339428736,1727610645381,-500.0,0.00019178,2]
[339428737,1727610645395,-500.0,0.00019178,2]
[339428738,1727610645406,-500.0,0.00019178,2]
[339428739,1727610645418,-500.0,0.00019178,2]
[339428740,1727610645429,-500.0,0.00019178,2]
[339428741,1727610645438,-500.0,0.00019178,2]
[339428742,1727610645449,-500.0,0.00019178,2]
[339428743,1727610645459,-500.0,0.00019178,2]
[339428744,1727610645471,-500.0,0.00019178,2]
[339428745,1727610645482,-480.57212099,0.00019178,2]
[339428746,1727610645493,-500.0,0.00019178,2]
[339428747,1727610645504,-357.93001915,0.00019178,2]
[339428748,1727610645514,-619.13,0.00019178,2]
[339428749,1727610645523,-500.0,0.00019178,2]
[339428750,1727610645533,-500.0,0.00019178,2]
[339428751,1727610645545,-500.0,0.00019178,2]
[339428752,1727610645555,-500.0,0.00019178,2]
[339428753,1727610645567,-500.0,0.00019178,2]
[339428754,1727610645580,-500.0,0.00019178,2]
[339428755,1727610645590,-500.0,0.00019178,2]
[339428756,1727610645602,-500.0,0.00019178,2]
[339428757,1727610645612,-541.06,0.00019178,2]
[339428758,1727610645622,-500.0,0.00019178,2]
[339428759,1727610645632,-1567.43,0.00019178,2]
[339428760,1727610645645,-500.0,0.00019178,2]
[339428761,1727610645656,-500.0,0.00019178,2]
[339428762,1727610645667,-508.45926701,0.00019178,2]
[339428763,1727610645676,-500.0,0.00019178,2]
[339428764,1727610645687,-500.0,0.00019178,2]
[339428765,1727610645700,-500.0,0.00019178,2]
[339428766,1727610645709,-500.0,0.00019178,2]
[339428767,1727610645720,-500.0,0.00019178,2]
[339428768,1727610645732,-500.0,0.00019178,2]
[339428769,1727610645742,-500.0,0.00019178,2]
[339428770,1727610645752,-500.0,0.00019178,2]
[339428771,1727610645763,-500.0,0.00019178,2]
[339428772,1727610645774,-151.0,0.00019178,2]
[339428773,1727610645785,-500.0,0.00019178,2]
[339428774,1727610645795,-151.0,0.00019178,2]
[339428775,1727610645806,-151.0,0.00019178,2]
[339428776,1727610645818,-500.0,0.00019178,2]
[339428777,1727610645827,-500.0,0.00019178,2]
[339428778,1727610645839,-500.0,0.00019178,2]
[339428779,1727610645851,-500.0,0.00019178,2]
[339428780,1727610645862,-500.0,0.00019178,2]
[339428781,1727610645873,-500.0,0.00019178,2]
[339428782,1727610645884,-500.0,0.00019178,2]
[339428783,1727610645895,-500.0,0.00019178,2]
[339428784,1727610645906,-1776.16,0.00019178,2]
[339428785,1727610645916,-500.0,0.00019178,2]
[339428786,1727610645928,-500.0,0.00019178,2]
[339428787,1727610645939,-500.0,0.00019178,2]
[339428788,1727610645951,-500.0,0.00019178,2]
[339428789,1727610645960,-1181.06,0.00019178,2]
[339428790,1727610645971,-579.79436331,0.00019178,2]
[339428791,1727610645983,-553.86500651,0.00019178,2]
[339428792,1727610645993,-151.0,0.00019178,2]
[339428793,1727610646004,-151.0,0.00019178,2]
[339428794,1727610646015,-151.0,0.00019178,2]
[339428795,1727610646027,-500.0,0.00019178,2]
[339428796,1727610646038,-151.0,0.00019178,2]
[339428797,1727610646047,-151.0,0.00019178,2]
[339428798,1727610646056,-151.0,0.00019178,2]
[339428799,1727610646065,-500.0,0.00019178,2]
[339428800,1727610646074,-519.14,0.00019178,2]
[339428801,1727610646083,-500.0,0.00019178,2]
[339428802,1727610646092,-500.0,0.00019178,2]
[339428803,1727610646102,-228.0786822,0.00019178,2]
[339428804,1727610646111,-556.33,0.00019178,2]
[339428805,1727610646120,-500.0,0.00019178,2]
[339428806,1727610646130,-518.03,0.00019178,2]
[339428807,1727610646140,-597.81,0.00019178,2]
[339428808,1727610646150,-500.0,0.00019178,2]
[339428809,1727610646160,-500.0,0.00019178,2]
[339428810,1727610646171,-500.0,0.00019178,2]
[339428811,1727610646182,-634.23,0.00019178,2]
[339428812,1727610646193,-500.0,0.00019178,2]
[339428813,1727610646203,-500.0,0.00019178,2]
[339428814,1727610646213,-500.0,0.00019178,2]
[339428815,1727610646222,-500.0,0.00019178,2]
[339428816,1727610646233,-500.0,0.00019178,2]
[339428817,1727610646243,-500.0,0.00019178,2]
[339428818,1727610646253,-500.0,0.00019178,2]
[339428819,1727610646262,-500.0,0.00019178,2]
[339428820,1727610646273,-500.0,0.00019178,2]
[339428821,1727610646284,-500.0,0.00019178,2]
[339428822,1727610646293,-614.75,0.00019178,2]
[339428823,1727610646303,-158.47133996,0.00019178,2]
[339428824,1727610646313,-500.0,0.00019178,2]
[339428825,1727610646323,-500.0,0.00019178,2]
[339428826,1727610646333,-500.0,0.00019178,2]
[339428827,1727610646346,-500.0,0.00019178,2]
[339428828,1727610646355,-234.43047065,0.00019178,2]
[339428829,1727610646364,-500.0,0.00019178,2]
[339428830,1727610646375,-500.0,0.00019178,2]
[339428831,1727610646384,-500.0,0.00019178,2]
[339428832,1727610646395,-500.0,0.00019178,2]
[339428833,1727610646404,-500.0,0.00019178,2]
[339428834,1727610646415,-509.30857256,0.00019178,2]
[339428835,1727610646427,-500.0,0.00019178,2]
[339428837,1727610646439,-1106.46,0.00019178,2]
[339428839,1727610646449,-500.0,0.00019178,2]
[339428842,1727610646460,-500.0,0.00019178,2]
[339428844,1727610646471,-234.52709105,0.00019178,2]
[339428846,1727610646481,-500.0,0.00019178,2]
[339428848,1727610646494,-500.0,0.00019178,2]
[339428850,1727610646505,-500.0,0.00019178,2]
[339428852,1727610646516,-16.13878813,0.00019178,2]
[339428864,1727610646763,-483.86121187,0.00019178,2]
[339428865,1727610646772,-22.17457229,0.00019178,2]
[339428866,1727610995775,200.0,0.00021,60]
[339428867,1727611003891,337.24817292,0.00022,120]
[339428868,1727611022420,150.0,0.00022,120]
[339428947,1727611839990,-3000.0,0.00014776,2]
[339428948,1727611840001,-1000.0,0.00014876,2]
[339428949,1727611840011,-494.005492,0.00015342,2]
[339428950,1727611840020,-189.94062,0.00015958,2]
[339428951,1727611840031,-300.0,0.00016236,2]
[339428952,1727611840042,-500.0,0.00016236,2]
[339428953,1727611840052,-603.478,0.00016236,2]
[339428954,1727611840061,-500.0,0.00016236,2]
[339428955,1727611840071,-500.0,0.00016236,2]
[339428956,1727611840082,-500.0,0.00016236,2]
[339428957,1727611840093,-500.0,0.00016236,2]
[339428958,1727611840103,-500.0,0.00016236,2]
[339428959,1727611840114,-500.0,0.00016236,2]
[339428960,1727611840125,-500.0,0.00016236,2]
[339428961,1727611840136,-500.0,0.00016236,2]
[339428962,1727611840146,-500.0,0.00016236,2]
[339428963,1727611840157,-500.0,0.00016236,2]
[339428964,1727611840168,-500.0,0.00016236,2]
[339428965,1727611840178,-500.0,0.00016236,2]
[339428966,1727611840190,-500.0,0.00016236,2]
[339428967,1727611840200,-500.0,0.00016236,2]
[339428968,1727611840211,-500.0,0.00016236,2]
[339428969,1727611840221,-500.0,0.00016236,2]
[339428970,1727611840233,-500.0,0.00016236,2]
[339428971,1727611840242,-500.0,0.00016236,2]
[339428972,1727611840252,-500.0,0.00016236,2]
[339428973,1727611840261,-500.0,0.00016236,2]
[339428974,1727611840273,-500.0,0.00016236,2]
[339428975,1727611840284,-500.0,0.00016236,2]
[339428976,1727611840293,-500.0,0.00016236,2]
[339428977,1727611840303,-500.0,0.00016236,2]
[339428978,1727611840314,-500.0,0.00016236,2]
[339428979,1727611840324,-500.0,0.00016236,2]
[339428980,1727611840335,-500.0,0.00016236,2]
[339428981,1727611840345,-500.0,0.00016236,2]
[339428982,1727611840356,-500.0,0.00016236,2]
[339428983,1727611840365,-500.0,0.00016236,2]
[339428984,1727611840374,-500.0,0.00016236,2]
[339428985,1727611840383,-217.28901122,0.00016236,2]
[339428986,1727611840393,-500.0,0.00016236,2]
[339428987,1727611840402,-500.0,0.00016236,2]
[339428988,1727611840412,-500.0,0.00016236,2]
[339428989,1727611840421,-500.0,0.00016236,2]
[339428990,1727611840431,-500.0,0.00016236,2]
[339428991,1727611840445,-500.0,0.00016236,2]
[339428992,1727611840454,-500.0,0.00016236,2]
[339428993,1727611840463,-500.0,0.00016236,2]
[339428994,1727611840472,-500.0,0.00016236,2]
[339428995,1727611840482,-456.11157904,0.00016236,2]
[339428998,1727612028161,197.44,0.00010959,2]
[339428999,1727612038810,578.07,0.00010959,2]
[339429000,1727612049321,481.73,0.00010959,2]
[339429001,1727612059816,401.44,0.00010959,2]
[339429002,1727612070315,334.53,0.00010959,2]
[339429003,1727612080854,278.78,0.00010959,2]
[339429004,1727612091404,232.32,0.00010959,2]
[339429005,1727612102103,193.6,0.00010959,2]
[339429006,1727612112625,161.33,0.00010959,2]
[339429007,1727612123318,806.67,0.00010959,2]
[339429008,1727612190990,2553.60192077,0.00014,10]
[339429009,1727612268344,780.48807923,0.0001378,2]
[339429010,1727612268371,419.51192077,0.0001378,2]
[339429016,1727612805792,3764.925181,0.00013699,2]
[339429017,1727612839760,250.0,0.00013353,2]
[339429019,1727612844896,250.0,0.00013453,2]
[339429020,1727612845090,250.0,0.0001349,2]
[339429021,1727612845302,250.0,0.00013527,2]
[339429022,1727612845520,250.0,0.00013564,2]
[339429023,1727612845754,250.0,0.00013601,2]
[339429024,1727612846155,250.0,0.00013637,2]
[339429025,1727612846369,250.0,0.00013674,2]
[339429026,1727612846582,250.0,0.00013711,2]
[339429027,1727612846800,250.0,0.00013748,2]
[339429028,1727612847012,250.0,0.00013785,2]
[339429029,1727612847219,250.0,0.00013822,2]
[339429030,1727612847420,250.0,0.00013859,2]
[339429031,1727612847832,250.0,0.00013896,2]
[339429032,1727612848048,250.0,0.00013933,2]
[339429033,1727612848268,250.0,0.0001397,2]
[339429034,1727612848481,250.0,0.00014006,2]
[339429035,1727612848692,250.0,0.00014043,2]
[339429036,1727612848906,250.0,0.0001408,2]
[339429038,1727612935575,201.4890734,0.00013209,2]
[339429046,1727612963106,-250.0,0.00014117,2]
[339429047,1727612963131,-4835.01984582,0.00014137,2]
[339429066,1727613032213,-250.0,0.00014154,2]
[339429067,1727613032224,-300.0,0.00014225,2]
[339429068,1727613032234,-300.0,0.00014225,2]
[339429069,1727613032246,-455.942,0.00014225,2]
[339429070,1727613032259,-500.0,0.00014225,2]
[339429071,1727613032269,-500.0,0.00014225,2]
[339429072,1727613032279,-500.0,0.00014225,2]
[339429073,1727613032288,-500.0,0.00014225,2]
[339429074,1727613032299,-500.0,0.00014225,2]
[339429075,1727613032310,-500.0,0.00014225,2]
[339429076,1727613032320,-500.0,0.00014225,2]
[339429077,1727613032331,-500.0,0.00014225,2]
[339429078,1727613032342,-500.0,0.00014225,2]
[339429079,1727613032352,-500.0,0.00014225,2]
[339429080,1727613032363,-565.08834974,0.00014226,2]
[339429081,1727613032375,-493.16460254,0.00014226,2]
[339429082,1727613032385,-500.0,0.00014226,2]
[339429083,1727613032396,-211.04537947,0.00014226,2]
[339429084,1727613032407,-550.0,0.00014226,2]
[339429085,1727613032417,-195.21522177,0.00014226,2]
[339429086,1727613032427,-500.0,0.00014226,2]
[339429087,1727613032437,-500.0,0.00014226,2]
[339429088,1727613032447,-500.0,0.00014226,2]
[339429089,1727613032456,-632.75074349,0.00014226,2]
[339429090,1727613032466,-376.14025985,0.00014227,2]
[339429091,1727613032475,-13578.50206414,0.00014227,2]
[339429124,1727613038288,-500.0,0.00014225,2]
[339429126,1727613038298,-500.0,0.00014225,2]
[339429128,1727613038308,-500.0,0.00014225,2]
[339429129,1727613038317,-500.0,0.00014225,2]
[339429131,1727613038326,-500.0,0.00014225,2]
[339429133,1727613038335,-500.0,0.00014225,2]
[339429135,1727613038345,-500.0,0.00014225,2]
[339429137,1727613038354,-500.0,0.00014225,2]
[339429138,1727613038364,-500.0,0.00014225,2]
[339429139,1727613038373,-500.0,0.00014225,2]
[339429140,1727613038382,-500.0,0.00014225,2]
[339429141,1727613038392,-500.0,0.00014225,2]
[339429142,1727613038401,-500.0,0.00014225,2]
[339429143,1727613038410,-500.0,0.00014225,2]
[339429144,1727613038419,-500.0,0.00014225,2]
[339429145,1727613038428,-500.0,0.00014225,2]
[339429146,1727613038437,-500.0,0.00014225,2]
[339429147,1727613038446,-500.0,0.00014225,2]
[339429148,1727613038455,-500.0,0.00014225,2]
[339429149,1727613038463,-500.0,0.00014225,2]
[339429150,1727613038472,-500.0,0.00014225,2]
[339429151,1727613038482,-500.0,0.00014225,2]
[339429152,1727613038492,-500.0,0.00014225,2]
[339429153,1727613038501,-500.0,0.00014225,2]
[339429154,1727613038511,-500.0,0.00014225,2]
[339429155,1727613038521,-500.0,0.00014225,2]
[339429156,1727613038530,-500.0,0.00014225,2]
[339429157,1727613038540,-500.0,0.00014225,2]
[339429158,1727613038549,-500.0,0.00014225,2]
[339429159,1727613038559,-590.67080144,0.00014225,2]
[339429160,1727613038567,-500.0,0.00014225,2]
[339429161,1727613038576,-44741.29998901,0.00014227,2]
[339429162,1727613038585,-128325.82263206,0.00014227,2]
[339429163,1727613038594,-226774.22144346,0.00014227,2]
[339429164,1727613038606,-422.75876168,0.00014227,2]
[339429169,1727613040202,-67893.309352,0.00014227,2]
[339429170,1727613040214,-55902.98198486,0.00014227,2]
[339429171,1727613040225,-24900.0,0.00014238,2]
[339429172,1727613040235,-500.0,0.00014273,2]
[339429173,1727613040246,-213.5753653,0.00014315,2]
[339429174,1727613040258,-1077.8590213,0.00014346,2]
[339429175,1727613040267,-116997.757181,0.00014374,2]
[339429176,1727613040276,-3764.925181,0.00014384,2]
[339429177,1727613040286,-2902.76089543,0.00014776,2]
[339429178,1727613040297,-1206.9990393,0.00014874,2]
[339429179,1727613040307,-3764.925181,0.00015068,2]
[339429180,1727613040317,-1200.0,0.0001515,2]
[339429181,1727613040327,-500.0,0.0001526,2]
[339429182,1727613040337,-750.0,0.00015342,2]
[339429183,1727613040347,-420.0,0.00015581,2]
[339429184,1727613040358,-420.0,0.00015648,2]
[339429185,1727613040367,-471.66448185,0.00015707,2]
[339429186,1727613040379,-151.0,0.00015806,2]
[339429187,1727613040388,-151.0,0.00015806,2]
[339429188,1727613040398,-151.0,0.00015806,2]
[339429189,1727613040408,-153.99012,0.00015806,2]
[339429190,1727613040420,-151.0,0.00015806,2]
[339429191,1727613040431,-151.0,0.00015806,2]
[339429192,1727613040442,-151.0,0.00015806,2]
[339429193,1727613040453,-151.0,0.00015806,2]
[339429194,1727613040463,-151.0,0.00015806,2]
[339429195,1727613040474,-151.0,0.00015806,2]
[339429196,1727613040484,-151.0,0.00015806,2]
[339429197,1727613040496,-500.0,0.00015873,2]
[339429198,1727613040506,-367.50169955,0.00015873,2]
[339429199,1727613040517,-945.83098842,0.00016,7]
[339429200,1727613040528,-150.0,0.00016015,2]
[339429201,1727613040539,-160.453282,0.00016028,2]
[339429202,1727613040550,-6426.24053768,0.00016037,2]
[339429203,1727613040561,-160.453282,0.00016048,2]
[339429204,1727613040569,-160.453282,0.00016068,2]
[339429205,1727613040579,-160.453282,0.00016088,2]
[339429206,1727613040588,-160.453282,0.00016108,2]
[339429207,1727613040597,-2000.0,0.000162,2]
[339429208,1727613040607,-2000.0,0.000164,2]
[339429209,1727613040619,-1000.83854048,0.00016421,2]
[339429210,1727613040629,-1200.0,0.0001652,2]
[339429211,1727613040640,-3125.62,0.000166,2]
[339429212,1727613040650,-416.7,0.00016856,2]
[339429213,1727613040660,-1217.0,0.00016862,2]
[339429214,1727613040671,-243.047,0.00016906,2]
[339429215,1727613040681,-214.31,0.00016906,2]
[339429216,1727613040692,-155.533,0.00016906,2]
[339429217,1727613040703,-250.0,0.00016906,2]
[339429218,1727613040715,-250.0,0.00016906,2]
[339429219,1727613040727,-587.0,0.00017066,2]
[339429220,1727613040739,-1000.0,0.000172,2]
[339429221,1727613040749,-151.0,0.000172,2]
[339429222,1727613040759,-3222.587,0.00017202,2]
[339429223,1727613040771,-587.0,0.00017213,2]
[339429224,1727613040782,-416.7,0.00017267,2]
[339429225,1727613040792,-1200.0,0.00017616,2]
[339429226,1727613040802,-416.7,0.00017677,2]
[339429227,1727613040813,-704.0,0.000177,2]
[339429228,1727613040823,-471.66448184,0.00017815,2]
[339429229,1727613040833,-416.7,0.00018087,2]
[339429230,1727613040843,-416.7,0.00018497,2]
[339429231,1727613040855,-1951.618805,0.000185,2]
[339429232,1727613040866,-823.0,0.00018692,2]
[339429233,1727613040877,-28987.30885503,0.000188,2]
[339429234,1727613040886,-313.554,0.0001887,2]
[339429235,1727613040896,-212.58241824,0.0001887,2]
[339429236,1727613040906,-2929.15327849,0.0001887,2]
[339429237,1727613040916,-200.9145275,0.00018904,2]
[339429238,1727613040930,-416.7,0.00018908,2]
[339429239,1727613040940,-823.0,0.00018934,2]
[339429240,1727613040950,-151.0,0.00018966,2]
[339429241,1727613040961,-16500.39079493,0.00018976,2]
[339429242,1727613040980,-2187.42520509,0.00018976,2]
[339429243,1727613040992,-679.40527399,0.00018976,2]
[339429299,1727613046182,-150.0,0.00016601,2]
[339429301,1727613046194,-417.33718519,0.00018976,2]
[339429340,1727613071024,-300.0,0.00014225,2]
[339429341,1727613071061,-500.0,0.00014225,2]
[339429342,1727613071098,-500.0,0.00014225,2]
[339429343,1727613071135,-500.0,0.00014225,2]
[339429344,1727613071173,-300.0,0.00014225,2]
[339429345,1727613071206,-308.78318077,0.00014226,2]
[339429346,1727613071240,-299.13853505,0.00014226,2]
[339429347,1727613071276,-500.0,0.00014226,2]
[339429348,1727613071310,-387.48855162,0.00014226,2]